fUSD/lending_fUSD_20260519
["ID","MTS","AMOUNT","RATE_DAILY","PERIOD"]
[422581440,1779123051000,-500.0,0.00034452,2]
[422581437,1779123051000,-500.0,0.00034452,2]
[422581433,1779123051000,-500.0,0.00034303,6]
[422581442,1779123051000,-640.0,0.00034452,2]
[422581444,1779123051000,-175.62,0.00034521,120]
[422581443,1779123051000,-277.0,0.00034521,30]
[422581448,1779123051000,-815.68,0.00034544,60]
[422581447,1779123051000,-1492.45,0.00034544,60]
[422581439,1779123051000,-355.0,0.00034452,2]
[422581445,1779123051000,-216.94,0.00034544,60]
[422581483,1779123052000,-1000.0,0.00035,7]
[422581479,1779123052000,-2510.75802215,0.00034989,120]
[422581488,1779123052000,-693.0796098,0.00035,120]
[422581476,1779123052000,-1675.8,0.000349,120]
[422581481,1779123052000,-150.0,0.00035,2]
[422581480,1779123052000,-1484.33,0.00035,2]
[422581486,1779123052000,-1000.0,0.00035,14]
[422581484,1779123052000,-1000.0,0.00035,7]
[422581478,1779123052000,-703.0122462,0.00034986,2]
[422581487,1779123052000,-424.67258082,0.00035,30]
[422581471,1779123052000,-1586.0,0.00034754,11]
[422581474,1779123052000,-352.09,0.00034834,30]
[422581469,1779123052000,-152.0,0.00034645,7]
[422581472,1779123052000,-1500.0,0.00034795,2]
[422581467,1779123052000,-2021.5114,0.00031644,2]
[422581468,1779123052000,-6456.09665458,0.000346,2]
[422581473,1779123052000,-1000.89,0.00034805,30]
[422581470,1779123052000,-2313.0,0.00034754,11]
[422581475,1779123052000,-2428.99744007,0.00034877,7]
[422581477,1779123052000,-503.0,0.00034927,10]
[422581466,1779123052000,-988.0,0.00029232,7]
[422581482,1779123052000,-1000.0,0.00035,2]
[422581489,1779123052000,-267.34,0.00035,30]
[422581485,1779123052000,-1000.0,0.00035,14]
[422581510,1779123052000,-542.5497791,0.00013698,2]
[422581507,1779123052000,-163.767474,0.00024658,2]
[422581508,1779123052000,-163.767474,0.00024658,2]
[422581509,1779123052000,-489.71407286,0.00029534,15]
[422581506,1779123052000,-163.767474,0.00024658,2]
[422581505,1779123052000,-163.767474,0.00024658,2]
[422581504,1779123052000,-163.767474,0.00024658,2]
[422581502,1779123052000,-163.767474,0.00024658,2]
[422581501,1779123052000,-209.19230366,0.00014999,2]
[422581503,1779123052000,-163.767474,0.00024658,2]
[422581497,1779123052000,-500.0,0.00013698,2]
[422581491,1779123052000,-900.12,0.00035,7]
[422581499,1779123052000,-63.85738687,0.00013698,2]
[422581492,1779123052000,-250.0,0.00035,7]
[422581493,1779123052000,-500.0,0.00035,2]
[422581494,1779123052000,-138760.47281859,0.00035,90]
[422581490,1779123052000,-368.62,0.00035,30]
[422581496,1779123052000,-500.0,0.00013698,2]
[422581498,1779123052000,-127.75865912,0.00013698,2]
[422581500,1779123052000,-1280.01,0.00013698,2]
[422581495,1779123052000,-565.42174258,0.00012902,2]
[422581511,1779123163000,9633.8,0.0003013,120]
[422581514,1779123199000,-432.9078,0.00011676,2]
[422581513,1779123199000,-175.05,0.00011133,2]
[422581512,1779123199000,-462.0422,0.00011126,2]
[422581516,1779123285000,156.93,7.287e-05,2]
[422581515,1779123285000,156.93,6.897e-05,2]
[422581517,1779123286000,156.93,7.677e-05,2]
[422581518,1779123286000,156.93,8.067e-05,2]
[422581521,1779123286000,156.93,9.236e-05,2]
[422581520,1779123286000,156.93,8.846e-05,2]
[422581519,1779123286000,156.93,8.456e-05,2]
[422581525,1779123287000,156.93,0.00010795,2]
[422581524,1779123287000,156.93,0.00010405,2]
[422581523,1779123287000,156.93,0.00010016,2]
[422581522,1779123287000,156.93,9.626e-05,2]
[422581526,1779123322000,340.36,0.00030105,120]
[422581529,1779123918000,952.30304316,0.00030137,120]
[422581531,1779123927000,7828.14787877,0.000107,2]
[422581533,1779123927000,10000.0,0.000107,2]
[422581532,1779123927000,10000.0,0.000107,2]
[422581535,1779123927000,10000.0,0.000107,2]
[422581536,1779123927000,9521.146602,0.000107,2]
[422581534,1779123927000,10000.0,0.000107,2]
[422581537,1779124063000,157.88,5.854e-05,2]
[422581543,1779124064000,157.88,7.335e-05,2]
[422581542,1779124064000,157.88,7.039e-05,2]
[422581540,1779124064000,5.213398,6.743e-05,2]
[422581541,1779124064000,152.666602,6.743e-05,2]
[422581539,1779124064000,157.88,6.447e-05,2]
[422581538,1779124064000,157.88,6.15e-05,2]
[422581546,1779124065000,157.88,8.223e-05,2]
[422581545,1779124065000,157.88,7.927e-05,2]
[422581544,1779124065000,157.88,7.631e-05,2]
[422581548,1779124066000,157.88,8.815e-05,2]
[422581547,1779124066000,157.88,8.519e-05,2]
[422581550,1779124066000,157.88,9.407e-05,2]
[422581549,1779124066000,157.88,9.111e-05,2]
[422581551,1779124066000,157.88,9.703e-05,2]
[422581555,1779124067000,157.88,0.00010887,2]
[422581554,1779124067000,157.88,0.00010591,2]
[422581553,1779124067000,157.88,0.00010295,2]
[422581552,1779124067000,157.88,9.999e-05,2]
[422581556,1779124153000,-157.31973386,0.00011026,2]
[422581557,1779124177000,-137.31786614,0.00011026,2]
[422581558,1779124177000,-262.68213386,0.00011026,2]
[422581588,1779124231000,-500.0,0.00011574,2]
[422581586,1779124231000,-1691.49,0.00011516,2]
[422581590,1779124231000,-150.0,0.00011612,2]
[422581584,1779124231000,-157.88,0.00011479,2]
[422581589,1779124231000,-363.85747782,0.00011574,2]
[422581585,1779124231000,-778.82,0.00011496,2]
[422581582,1779124231000,-109624.73283936,0.00011465,2]
[422581581,1779124231000,-4638.74716064,0.00011465,2]
[422581577,1779124231000,-157.88,0.00011183,2]
[422581579,1779124231000,-215.11887611,0.00011445,2]
[422581580,1779124231000,-1200.0,0.00011464,2]
[422581587,1779124231000,-200.0,0.00011526,2]
[422581576,1779124231000,-230.0,0.00011141,2]
[422581575,1779124231000,-500.0,0.00011029,2]
[422581574,1779124231000,-250.0,0.00011029,2]
[422581573,1779124231000,-610.87861929,0.00011028,2]
[422581570,1779124231000,-101.17534396,0.00011026,2]
[422581578,1779124231000,-250.0,0.00011428,2]
[422581592,1779124231000,-500.0,0.00011645,2]
[422581583,1779124231000,-174.16,0.0001147,2]
[422581591,1779124231000,-2000.0,0.00011612,2]
[422581593,1779124231000,-363.85747782,0.00011663,2]
[422581611,1779124231000,-14451.62342973,0.00012569,2]
[422581609,1779124231000,-167.05,0.00012479,2]
[422581610,1779124231000,-295.08680176,0.00012568,2]
[422581605,1779124231000,-4000.0,0.00012135,2]
[422581606,1779124231000,-208.5339928,0.00012296,2]
[422581607,1779124231000,-340.36,0.00012352,2]
[422581604,1779124231000,-500.0,0.00012129,2]
[422581602,1779124231000,-250.0,0.00012129,2]
[422581608,1779124231000,-4000.0,0.00012431,2]
[422581600,1779124231000,-4143.06,0.00012055,2]
[422581594,1779124231000,-10653.18,0.00011663,2]
[422581603,1779124231000,-500.0,0.00012129,2]
[422581597,1779124231000,-150.0,0.0001196,2]
[422581598,1779124231000,-150.0,0.00011984,2]
[422581595,1779124231000,-4000.0,0.00011839,2]
[422581601,1779124231000,-250.0,0.00012129,2]
[422581599,1779124231000,-167.05,0.00011984,2]
[422581596,1779124231000,-2956.82,0.00011858,2]
[422581629,1779124232000,-255.0,0.00013063,2]
[422581652,1779124232000,-150.0,0.00013488,2]
[422581650,1779124232000,-150.0,0.00013488,2]
[422581640,1779124232000,-500.0,0.00012949,2]
[422581654,1779124232000,-150.0,0.00013488,2]
[422581635,1779124232000,-2.70574182,0.00013275,2]
[422581633,1779124232000,-10145.99175646,0.000132,2]
[422581631,1779124232000,-2000.0,0.00013063,2]
[422581621,1779124232000,-500.0,0.00013001,2]
[422581627,1779124232000,-5199.37785156,0.0001305,2]
[422581613,1779124232000,-2000.0,0.00012569,2]
[422581622,1779124232000,-4000.0,0.00013023,2]
[422581620,1779124232000,-1553.76354504,0.00013,2]
[422581619,1779124232000,-167.05,0.00012973,2]
[422581617,1779124232000,-21826.64860747,0.0001295,2]
[422581618,1779124232000,-1679.27289253,0.0001295,2]
[422581616,1779124232000,-500.0,0.00012949,2]
[422581614,1779124232000,-1680.0,0.0001261,2]
[422581615,1779124232000,-4000.0,0.00012727,2]
[422581612,1779124232000,-18735.58677027,0.00012569,2]
[422581656,1779124232000,-150.0,0.00013488,2]
[422581624,1779124232000,-212.90394439,0.0001305,2]
[422581642,1779124232000,-497.29425818,0.00013275,2]
[422581680,1779124232000,-858.3742,0.00013534,2]
[422581646,1779124232000,-2500.0,0.00013461,2]
[422581677,1779124232000,-2247.63760254,0.00013534,2]
[422581678,1779124232000,-2070.84698,0.00013534,2]
[422581679,1779124232000,-1915.264,0.00013534,2]
[422581676,1779124232000,-15158.61043862,0.00013534,2]
[422581675,1779124232000,-1895.22803406,0.00013534,2]
[422581674,1779124232000,-497.40349257,0.00012949,2]
[422581673,1779124232000,-517.93630202,0.00013534,2]
[422581672,1779124232000,-31.95835205,0.00013524,2]
[422581644,1779124232000,-158.36,0.00013372,2]
[422581670,1779124232000,-346.16352923,0.000135,2]
[422581668,1779124232000,-1000.0,0.000135,2]
[422581669,1779124232000,-1116.16311203,0.000135,2]
[422581666,1779124232000,-150.0,0.00013488,2]
[422581667,1779124232000,-150.0,0.00013488,2]
[422581664,1779124232000,-150.0,0.00013488,2]
[422581662,1779124232000,-150.0,0.00013488,2]
[422581661,1779124232000,-150.0,0.00013488,2]
[422581658,1779124232000,-150.0,0.00013488,2]
[422581660,1779124232000,-150.0,0.00013488,2]
[422581648,1779124232000,-167.05,0.00013468,2]
[422581671,1779124232000,-118.04164795,0.00013524,2]
[422581681,1779124232000,-1873.69118943,0.00013534,2]
[422581690,1779124237000,-340.08,0.00012038,2]
[422581688,1779124237000,-389.74,0.00010926,2]
[422581689,1779124237000,-110.26,0.00010926,2]
[422581692,1779124237000,-906.56824085,0.00013534,2]
[422581691,1779124237000,-5037.08162768,0.00013534,2]
[422581693,1779124237000,-657.05156622,0.00013534,2]
[422581695,1779124238000,-500.0,0.00013534,2]
[422581698,1779124240000,-1132.64973647,0.00013534,2]
[422581782,1779124243000,-5421.00065404,0.00013534,2]
[422581783,1779124243000,-146.76644872,0.00013548,2]
[422581780,1779124243000,-1147.70799621,0.00013534,2]
[422581781,1779124243000,-4973.58469724,0.00013534,2]
[422583330,1779124497000,161.44,0.00030137,120]
[422583331,1779124559000,339.42151134,0.00012526,21]
[422583332,1779124721000,200.0,0.00012309,7]
[422583333,1779124876000,-193.60480139,0.00011687,2]
[422583334,1779124961000,285.45,0.00030082,120]
[422583335,1779125037000,15.97523546,0.00011663,2]
[422583336,1779125212000,157.24,5.793e-05,2]
[422583338,1779125213000,157.24,6.589e-05,2]
[422583337,1779125213000,157.24,6.191e-05,2]
[422583339,1779125213000,157.24,6.986e-05,2]
[422583340,1779125213000,157.24,7.384e-05,2]
[422583345,1779125214000,157.24,9.372e-05,2]
[422583344,1779125214000,157.24,8.974e-05,2]
[422583343,1779125214000,157.24,8.576e-05,2]
[422583342,1779125214000,157.24,8.179e-05,2]
[422583341,1779125214000,157.24,7.781e-05,2]
[422583348,1779125215000,157.24,0.00010564,2]
[422583347,1779125215000,157.24,0.00010167,2]
[422583346,1779125215000,157.24,9.769e-05,2]
[422583350,1779125321000,200.0,0.00010842,2]
[422583351,1779125345000,1000.0,0.00030136,120]
[422583355,1779125346000,-273.74628735,0.00011324,2]
[422583354,1779125346000,-500.0,0.00011177,2]
[422583353,1779125346000,-250.0,0.00011143,2]
[422583352,1779125346000,-157.24,0.00010962,2]
[422583361,1779125431000,-2709.440084,0.00010997,2]
[422583362,1779125431000,-300.0,0.00011052,2]
[422583363,1779125431000,-1200.0,0.00011119,2]
[422583367,1779125431000,-150.0,0.00011164,2]
[422583364,1779125431000,-9697.8,0.0001112,2]
[422583366,1779125431000,-300.0,0.00011164,2]
[422583365,1779125431000,-300.0,0.00011164,2]
[422583416,1779125432000,-2000.0,0.00012316,2]
[422583418,1779125432000,-155.11515396,0.00012327,2]
[422583420,1779125432000,-285.45,0.00012329,2]
[422583423,1779125432000,-38532.52120605,0.00012417,2]
[422583425,1779125432000,-1000.0,0.00012425,2]
[422583436,1779125432000,-9390.83081624,0.00012427,2]
[422583430,1779125432000,-2500.0,0.00012427,2]
[422583427,1779125432000,-6372.5539,0.00012427,2]
[422583433,1779125432000,-154.47727069,0.00012427,2]
[422583439,1779125432000,-7448.9306259,0.00012427,2]
[422583444,1779125432000,-4432.70150448,0.00012427,2]
[422583441,1779125432000,-15230.37291344,0.00012427,2]
[422583458,1779125432000,-487.31541959,0.00012526,2]
[422583460,1779125432000,-414672.0242,0.00012527,2]
[422583461,1779125432000,-2076.4271,0.00012527,2]
[422583459,1779125432000,-459.42586827,0.00012526,2]
[422583410,1779125432000,-1680.0,0.00012231,2]
[422583450,1779125432000,-500.0,0.00011164,2]
[422583452,1779125432000,-12883.10276539,0.00012427,2]
[422583464,1779125432000,-716.53,0.00012686,2]
[422583455,1779125432000,-421.86465397,0.00012427,2]
[422583454,1779125432000,-976.642723,0.00012427,2]
[422583457,1779125432000,-500.0,0.00012525,2]
[422583462,1779125432000,-170.40944986,0.00012569,2]
[422583468,1779125432000,-9390.83081619,0.00012702,2]
[422583448,1779125432000,-500.0,0.00011164,2]
[422583414,1779125432000,-420.0,0.00012266,2]
[422583372,1779125432000,-487.69866161,0.00011164,2]
[422583402,1779125432000,-300.0,0.00012058,2]
[422583368,1779125432000,-500.0,0.00011164,2]
[422583369,1779125432000,-500.0,0.00011164,2]
[422583375,1779125432000,-206852.43,0.00011165,2]
[422583370,1779125432000,-500.0,0.00011164,2]
[422583371,1779125432000,-500.0,0.00011164,2]
[422583376,1779125432000,-300.0,0.00011193,2]
[422583374,1779125432000,-500.0,0.00011164,2]
[422583373,1779125432000,-500.0,0.00011164,2]
[422583377,1779125432000,-226.25371265,0.00011324,2]
[422583379,1779125432000,-155.11515396,0.00011382,2]
[422583378,1779125432000,-157.24,0.0001136,2]
[422583390,1779125432000,-5208.09,0.00011804,2]
[422583412,1779125432000,-420.0,0.00012266,2]
[422583384,1779125432000,-331.47781579,0.00011583,2]
[422583392,1779125432000,-200.0,0.0001191,2]
[422583380,1779125432000,-4094.51,0.0001141,2]
[422583382,1779125432000,-3925.28,0.00011561,2]
[422583386,1779125432000,-336.42,0.00011607,2]
[422583387,1779125432000,-5903.12476454,0.00011663,2]
[422583394,1779125432000,-157.11,0.00011964,2]
[422583398,1779125432000,-250.0,0.00012058,2]
[422583400,1779125432000,-250.0,0.00012058,2]
[422583396,1779125432000,-166.7,0.00012011,2]
[422583404,1779125432000,-500.0,0.00012158,2]
[422583406,1779125432000,-273.86738678,0.00012158,2]
[422583408,1779125432000,-255.0,0.00012214,2]
[422583381,1779125432000,-843.07169794,0.00011482,2]
[422583463,1779125432000,-170.40944986,0.00012569,2]
[422583456,1779125432000,-21714.82,0.00012493,2]
[422583469,1779125432000,-39995.10780914,0.00012702,2]
[422583500,1779125432000,-716.53,0.0001332,2]
[422583509,1779125432000,-524.02563693,0.00013386,2]
[422583499,1779125432000,-39995.10780914,0.00013251,2]
[422583510,1779125432000,-500.0,0.00013386,2]
[422583505,1779125432000,-500.0,0.00013386,2]
[422583506,1779125432000,-500.0,0.00013386,2]
[422583508,1779125432000,-500.0,0.00013386,2]
[422583503,1779125432000,-500.0,0.00013386,2]
[422583504,1779125432000,-500.0,0.00013386,2]
[422583501,1779125432000,-500.0,0.00013347,2]
[422583507,1779125432000,-500.0,0.00013386,2]
[422583511,1779125432000,-509.66535247,0.00013386,2]
[422583497,1779125432000,-1097.29439826,0.0001325,3]
[422583516,1779125432000,-500.0,0.00013386,2]
[422583522,1779125432000,-500.0,0.00013386,2]
[422583515,1779125432000,-150.0,0.00013386,2]
[422583521,1779125432000,-500.0,0.00013386,2]
[422583523,1779125432000,-500.0,0.00013386,2]
[422583519,1779125432000,-500.0,0.00013386,2]
[422583514,1779125432000,-500.0,0.00013386,2]
[422583512,1779125432000,-500.0,0.00013386,2]
[422583518,1779125432000,-500.0,0.00013386,2]
[422583517,1779125432000,-154.42738782,0.00013386,2]
[422583520,1779125432000,-537.31096175,0.00013386,2]
[422583524,1779125432000,-500.0,0.00013386,2]
[422583465,1779125432000,-500.0,0.000127,4]
[422583513,1779125432000,-150.0,0.00013386,2]
[422583496,1779125432000,-157.11,0.00013161,2]
[422583502,1779125432000,-433.0,0.00013364,2]
[422583495,1779125432000,-208.5339928,0.00013139,2]
[422583472,1779125432000,-421.86465391,0.0001278,2]
[422583466,1779125432000,-300.0,0.000127,4]
[422583467,1779125432000,-1400.0,0.000127,4]
[422583471,1779125432000,-976.64272298,0.0001278,2]
[422583473,1779125432000,-500.0,0.00012799,2]
[422583474,1779125432000,-1000.0,0.000128,4]
[422583470,1779125432000,-5000.0,0.00012717,2]
[422583494,1779125432000,-421.86465391,0.00013134,2]
[422583475,1779125432000,-600.0,0.000128,4]
[422583477,1779125432000,-1500.0,0.000129,4]
[422583486,1779125432000,-716.53,0.00013003,2]
[422583478,1779125432000,-900.0,0.000129,4]
[422583483,1779125432000,-9390.83081619,0.00012977,2]
[422583484,1779125432000,-39995.10780914,0.00012977,2]
[422583476,1779125432000,-2800.0,0.000128,4]
[422583485,1779125432000,-160.0,0.0001298,2]
[422583482,1779125432000,-910.78222874,0.00012949,2]
[422583498,1779125432000,-9390.83081619,0.00013251,2]
[422583493,1779125432000,-976.64272298,0.00013134,2]
[422583488,1779125432000,-65353.5091736,0.00013033,2]
[422583492,1779125432000,-215.11887611,0.00013108,2]
[422583491,1779125432000,-500.0,0.00013073,2]
[422583489,1779125432000,-31928.5353396,0.00013033,2]
[422583487,1779125432000,-5667.0498169,0.00013031,2]
[422583479,1779125432000,-4200.0,0.000129,4]
[422583481,1779125432000,-485.47662152,0.00012949,2]
[422583480,1779125432000,-1872.07836152,0.00012949,2]
[422583490,1779125432000,-336.42,0.00013058,2]
[422583547,1779125433000,-150.0,0.00013488,2]
[422583529,1779125433000,-224.13730724,0.00013398,2]
[422583525,1779125433000,-500.0,0.00013386,2]
[422583530,1779125433000,-552.53031506,0.00013419,2]
[422583532,1779125433000,-2000.0,0.00013434,2]
[422583534,1779125433000,-587.0,0.00013477,2]
[422583528,1779125433000,-154.47727069,0.00013398,2]
[422583531,1779125433000,-19032.9048,0.00013434,2]
[422583533,1779125433000,-2351.0,0.00013454,2]
[422583526,1779125433000,-523.61825956,0.00013386,2]
[422583527,1779125433000,-154.145141,0.00013398,2]
[422583546,1779125433000,-150.0,0.00013488,2]
[422583535,1779125433000,-480.0,0.00013477,2]
[422583545,1779125433000,-150.0,0.00013488,2]
[422583541,1779125433000,-150.0,0.00013488,2]
[422583540,1779125433000,-251.37092638,0.00013488,2]
[422583536,1779125433000,-976.64272298,0.00013487,2]
[422583553,1779125433000,-219.4739808,0.00013498,2]
[422583554,1779125433000,-38697.90079485,0.00013498,2]
[422583550,1779125433000,-594.85323188,0.00013488,2]
[422583552,1779125433000,-1097.29439826,0.00013497,3]
[422583548,1779125433000,-150.0,0.00013488,2]
[422583549,1779125433000,-150.0,0.00013488,2]
[422583551,1779125433000,-1097.29439826,0.00013497,3]
[422583542,1779125433000,-150.0,0.00013488,2]
[422583543,1779125433000,-150.0,0.00013488,2]
[422583538,1779125433000,-150.0,0.00013488,2]
[422583544,1779125433000,-150.0,0.00013488,2]
[422583537,1779125433000,-421.86465391,0.00013487,2]
[422583539,1779125433000,-220.45104408,0.00013488,2]
[422583590,1779125438000,-500.0,0.00013698,2]
[422583598,1779125438000,-500.0,0.00013698,2]
[422583601,1779125438000,-500.0,0.00013698,2]
[422583596,1779125438000,-500.0,0.00013698,2]
[422583602,1779125438000,-500.0,0.00013698,2]
[422583603,1779125438000,-500.0,0.00013698,2]
[422583592,1779125438000,-500.0,0.00013698,2]
[422583594,1779125438000,-500.0,0.00013698,2]
[422583606,1779125438000,-333.69,0.00013698,2]
[422583609,1779125438000,-500.0,0.00013698,2]
[422583605,1779125438000,-500.0,0.00013698,2]
[422583608,1779125438000,-500.0,0.00013698,2]
[422583611,1779125438000,-503.43966694,0.00013698,2]
[422583607,1779125438000,-500.0,0.00013698,2]
[422583617,1779125438000,-541.66,0.00013698,2]
[422583604,1779125438000,-500.0,0.00013698,2]
[422583610,1779125438000,-500.0,0.00013698,2]
[422583612,1779125438000,-541.66,0.00013698,2]
[422583614,1779125438000,-541.66,0.00013698,2]
[422583615,1779125438000,-541.66,0.00013698,2]
[422583616,1779125438000,-541.66,0.00013698,2]
[422583600,1779125438000,-391.68631386,0.00013698,2]
[422583585,1779125438000,-150.0,0.00013664,2]
[422583599,1779125438000,-500.0,0.00013698,2]
[422583613,1779125438000,-541.66,0.00013698,2]
[422583571,1779125438000,-9390.83081619,0.00013526,2]
[422583567,1779125438000,-500.0,0.00011164,2]
[422583568,1779125438000,-4101.0387852,0.00013498,2]
[422583573,1779125438000,-150.0,0.0001354,2]
[422583570,1779125438000,-150.0,0.00013514,2]
[422583569,1779125438000,-869853.33051995,0.00013498,2]
[422583572,1779125438000,-39995.10780914,0.00013526,2]
[422583575,1779125438000,-150.0,0.00013576,2]
[422583577,1779125438000,-150.0,0.00013581,2]
[422583580,1779125438000,-150.0,0.00013613,2]
[422583579,1779125438000,-150.0,0.00013595,2]
[422583581,1779125438000,-150.0,0.00013619,2]
[422583578,1779125438000,-150.0,0.00013593,2]
[422583576,1779125438000,-150.0,0.00013576,2]
[422583587,1779125438000,-150.0,0.00013672,2]
[422583586,1779125438000,-150.0,0.00013664,2]
[422583584,1779125438000,-150.0,0.00013645,2]
[422583582,1779125438000,-150.0,0.00013638,2]
[422583583,1779125438000,-716.53,0.00013638,2]
[422583589,1779125438000,-500.0,0.00013698,2]
[422583588,1779125438000,-150.0,0.00013675,2]
[422583619,1779125438000,-500.0,0.00013698,2]
[422583574,1779125438000,-150.0,0.00013567,2]
[422583618,1779125438000,-500.0,0.00013698,2]
[422583656,1779125438000,-623.07,0.00013698,2]
[422583657,1779125438000,-623.07,0.00013698,2]
[422583645,1779125438000,-500.0,0.00013698,2]
[422583655,1779125438000,-623.07,0.00013698,2]
[422583658,1779125438000,-623.07,0.00013698,2]
[422583649,1779125438000,-761.19,0.00013698,2]
[422583651,1779125438000,-761.19,0.00013698,2]
[422583650,1779125438000,-761.19,0.00013698,2]
[422583648,1779125438000,-577.14414612,0.00013698,2]
[422583654,1779125438000,-761.19,0.00013698,2]
[422583647,1779125438000,-500.0,0.00013698,2]
[422583653,1779125438000,-761.19,0.00013698,2]
[422583659,1779125438000,-623.07,0.00013698,2]
[422583666,1779125438000,-500.0,0.00013698,2]
[422583664,1779125438000,-500.0,0.00013698,2]
[422583660,1779125438000,-623.07,0.00013698,2]
[422583662,1779125438000,-500.0,0.00013698,2]
[422583663,1779125438000,-500.0,0.00013698,2]
[422583661,1779125438000,-500.0,0.00013698,2]
[422583665,1779125438000,-500.0,0.00013698,2]
[422583620,1779125438000,-500.0,0.00013698,2]
[422583646,1779125438000,-500.0,0.00013698,2]
[422583642,1779125438000,-500.0,0.00013698,2]
[422583652,1779125438000,-761.19,0.00013698,2]
[422583644,1779125438000,-500.0,0.00013698,2]
[422583639,1779125438000,-500.0,0.00013698,2]
[422583629,1779125438000,-500.0,0.00013698,2]
[422583631,1779125438000,-500.0,0.00013698,2]
[422583630,1779125438000,-500.0,0.00013698,2]
[422583621,1779125438000,-500.0,0.00013698,2]
[422583627,1779125438000,-500.0,0.00013698,2]
[422583625,1779125438000,-500.0,0.00013698,2]
[422583626,1779125438000,-500.0,0.00013698,2]
[422583624,1779125438000,-500.0,0.00013698,2]
[422583628,1779125438000,-500.0,0.00013698,2]
[422583622,1779125438000,-500.0,0.00013698,2]
[422583633,1779125438000,-500.0,0.00013698,2]
[422583632,1779125438000,-500.0,0.00013698,2]
[422583634,1779125438000,-500.0,0.00013698,2]
[422583635,1779125438000,-500.0,0.00013698,2]
[422583636,1779125438000,-500.0,0.00013698,2]
[422583641,1779125438000,-500.0,0.00013698,2]
[422583643,1779125438000,-527.38709912,0.00013698,2]
[422583637,1779125438000,-500.0,0.00013698,2]
[422583640,1779125438000,-500.0,0.00013698,2]
[422583623,1779125438000,-208.7067028,0.00013698,2]
[422583638,1779125438000,-500.0,0.00013698,2]
[422583695,1779125439000,-500.0,0.00013698,2]
[422583705,1779125439000,-500.0,0.00013698,2]
[422583701,1779125439000,-500.0,0.00013698,2]
[422583704,1779125439000,-368.39204837,0.00013698,2]
[422583698,1779125439000,-500.0,0.00013698,2]
[422583699,1779125439000,-500.0,0.00013698,2]
[422583700,1779125439000,-500.0,0.00013698,2]
[422583697,1779125439000,-500.0,0.00013698,2]
[422583703,1779125439000,-500.0,0.00013698,2]
[422583709,1779125439000,-500.0,0.00013698,2]
[422583702,1779125439000,-500.0,0.00013698,2]
[422583708,1779125439000,-500.0,0.00013698,2]
[422583722,1779125439000,-200.0,0.00013699,2]
[422583710,1779125439000,-500.0,0.00013698,2]
[422583711,1779125439000,-1797.08,0.00013698,2]
[422583718,1779125439000,-150.0,0.00013698,2]
[422583719,1779125439000,-154.14514099,0.00013698,2]
[422583720,1779125439000,-2500.0,0.00013699,2]
[422583715,1779125439000,-1797.08,0.00013698,2]
[422583714,1779125439000,-1797.08,0.00013698,2]
[422583716,1779125439000,-1797.08,0.00013698,2]
[422583717,1779125439000,-500.0,0.00013698,2]
[422583713,1779125439000,-1797.08,0.00013698,2]
[422583732,1779125439000,-150.0,0.00013769,2]
[422583707,1779125439000,-500.0,0.00013698,2]
[422583712,1779125439000,-1797.08,0.00013698,2]